bitfinex/quotes_ETHUSD_20240731
["timestamp","ask_amount","ask_price","bid_price","bid_amount"]
[1722461223350,2.3218,3239.7,3239.0,3.08729]
[1722461223565,2.3218,3239.7,3238.8,3.08749]
[1722461223769,5.40852,3239.7,3238.9,3.08743]
[1722461223943,5.40852,3239.7,3238.8,3.0875]
[1722461224260,3.0868,3239.6,3238.8,3.0875]
[1722461225346,8.39372829,3239.7,3238.9,3.08744]
[1722461225530,3.08682,3239.6,3238.9,3.08744]
[1722461225734,3.08682,3239.6,3238.7,3.08758]
[1722461226168,3.08689,3239.5,3238.5,6.17557]
[1722461226370,5.30700829,3239.7,3238.6,6.08767]
[1722461226371,3.08705,3239.4,3238.6,6.08767]
[1722461227150,3.08695,3239.5,3238.7,3.08765]
[1722461227358,3.08681,3239.6,3238.6,3.0]
[1722461227359,3.08685,3239.6,3238.6,3.0]
[1722461227560,3.627761,3239.5,3238.7,3.08759]
[1722461228277,3.08706,3239.4,3238.6,3.0]
[1722461228655,3.627761,3239.5,3238.7,3.08764]
[1722461228873,3.08699,3239.4,3238.7,3.08764]
[1722461229036,3.08716,3239.3,3238.6,3.0]
[1722461229237,3.08716,3239.3,3237.0,3.08923]
[1722461229238,2.3218,3238.9,3237.0,3.08923]
[1722461229441,3.08762,3238.8,3238.0,3.08826]
[1722461230278,3.08771,3238.7,3238.0,3.08826]
[1722461230641,3.08771,3238.7,3237.8,3.08842]
[1722461230979,3.08781,3238.6,3237.9,3.0]
[1722461231282,3.08784,3238.5,3237.9,3.0]
[1722461231577,2.3218,3238.4,3237.7,3.08858]
[1722461231780,2.3218,3238.4,3237.7,3.08854]
[1722461231981,3.609721,3238.8,3238.0,3.08826]
[1722461232143,3.609721,3238.8,3238.0,3.08825]
[1722461232346,2.3218,3238.8,3238.0,3.08825]
[1722461232849,2.3218,3238.8,3238.3,3.08796]
[1722461233061,2.3218,3238.8,3238.0,3.08828]
[1722461233245,2.3218,3238.8,3238.2,3.08806]
[1722461233748,2.3218,3238.8,3238.4,3.08793]
[1722461234384,2.3218,3238.8,3238.2,3.08806]
[1722461234677,2.3218,3238.8,3238.3,3.08803]
[1722461235501,2.3218,3238.8,3238.1,3.08817]
[1722461235646,2.3218,3238.8,3238.2,3.08812]
[1722461235979,2.3218,3238.8,3238.3,3.08803]
[1722461236358,2.3218,3238.8,3238.0,3.08828]
[1722461236762,2.3218,3238.8,3238.2,3.08806]
[1722461238171,3.31983,3238.7,3238.0,6.17652]
[1722461238368,3.31984,3238.7,3238.0,3.08827]
[1722461239272,6.40757,3238.7,3238.0,3.08827]
[1722461239593,6.40757,3238.7,3237.8,3.08845]
[1722461239594,3.08788,3238.5,3237.8,3.08845]
[1722461240674,5.4762,3238.4,3237.6,6.1773]
[1722461241016,5.4762,3238.4,3237.7,6.08859]
[1722461241162,5.4762,3238.4,3237.7,3.0]
[1722461241358,5.4762,3238.4,3237.7,6.08859]
[1722461241662,5.4762,3238.4,3237.8,3.08849]
[1722461241663,2.3882,3238.4,3237.8,3.08849]
[1722461241866,2.3882,3238.4,3238.0,3.08825]
[1722461242095,2.3882,3238.4,3237.9,3.08841]
[1722461242299,2.3882,3238.4,3238.1,3.08822]
[1722461242798,7.47,3238.6,3238.3,3.08804]
[1722461242990,2.3882,3238.8,3238.3,3.08796]
[1722461243185,2.3882,3238.8,3238.5,3.08782]
[1722461244000,2.3882,3238.8,3238.3,3.08795]
[1722461244498,2.3882,3238.8,3238.2,3.0881]
[1722461244866,2.3882,3238.8,3238.3,3.08802]
[1722461245300,5.47576,3238.8,3238.1,3.08818]
[1722461245479,6.023327,3238.8,3238.1,3.08818]
[1722461245804,3.08766,3238.7,3238.1,3.08818]
[1722461247266,2.935767,3238.8,3238.1,3.08816]
[1722461247665,2.935767,3238.8,3237.9,3.08833]
[1722461247904,5.3631,3238.5,3237.8,3.08849]
[1722461249489,5.3631,3238.5,3237.9,3.08841]
[1722461249689,2.2752,3238.5,3237.8,3.08849]
[1722461249894,5.36305,3238.5,3237.8,3.08846]
[1722461250080,5.899341,3238.5,3237.8,3.08846]
[1722461250700,5.899341,3238.5,3237.9,3.08841]
[1722461251103,5.899341,3238.5,3237.8,3.08849]
[1722461251305,5.899341,3238.5,3237.8,6.17695]
[1722461251746,2.811491,3238.5,3237.8,3.08846]
[1722461251888,2.811491,3238.5,3238.0,3.0883]
[1722461252304,2.811491,3238.5,3237.8,3.08844]
[1722461252512,2.811491,3238.5,3237.9,3.08841]
[1722461254722,5.899391,3238.5,3237.7,3.0]
[1722461254899,5.899391,3238.5,3237.8,3.08847]
[1722461255310,0.8987191,3238.4,3237.8,3.08847]
[1722461255511,0.8987191,3238.4,3237.8,3.08846]
[1722461255822,0.8987191,3238.4,3237.9,3.08841]
[1722461256187,2.2752,3238.1,3237.5,3.08872]
[1722461256519,2.2752,3238.1,3237.4,3.08884]
[1722461256724,3.08839,3238.0,3237.3,3.0889]
[1722461257425,2.2752,3238.1,3237.1,3.08912]
[1722461257610,3.08837,3238.0,3237.3,3.08894]
[1722461257803,3.93354,3238.0,3237.3,3.08894]
[1722461258628,0.84517,3238.0,3237.4,3.08882]
[1722461259485,0.84517,3238.0,3237.2,3.08902]
[1722461259486,3.93351,3238.0,3237.2,3.08902]
[1722461260022,3.93351,3238.0,3237.3,3.08898]
[1722461260629,2.2752,3238.1,3236.9,4.5]
[1722461260797,2.2752,3238.1,3237.6,3.08867]
[1722461261431,2.2752,3238.1,3237.8,3.08851]
[1722461262086,2.2752,3238.1,3237.9,3.08836]
[1722461262294,2.2752,3238.1,3237.8,3.08844]
[1722461262529,2.2752,3238.1,3237.9,3.08841]
[1722461263325,19.73,3238.6,3237.9,0.308841]
[1722461263524,19.73,3238.6,3238.0,0.06175969]
[1722461263728,19.73,3238.6,3238.4,3.08793]
[1722461263894,2.4213,3238.9,3238.5,3.08784]
[1722461264289,2.4213,3238.9,3238.6,3.08774]
[1722461264530,2.4213,3238.9,3238.4,3.08786]
[1722461264701,2.4213,3238.9,3238.4,3.08788]
[1722461265309,2.4213,3238.9,3238.4,6.17574]
[1722461265806,2.4213,3238.9,3238.4,3.08786]
[1722461266531,2.4213,3238.9,3238.4,6.17573]
[1722461266729,2.4213,3238.9,3238.4,3.08786]
[1722461267618,2.4213,3238.9,3238.2,3.08808]
[1722461267824,3.41043,3238.9,3238.3,3.088]
[1722461268934,3.41043,3238.9,3238.3,6.17597]
[1722461269134,2.4213,3238.9,3238.4,3.08793]
[1722461269431,2.4213,3238.9,3238.3,3.08797]
[1722461269830,2.4213,3238.9,3238.2,3.08813]
[1722461270171,2.4213,3238.9,3237.9,4.808841]
[1722461270172,2.4213,3238.9,3238.3,3.08798]
[1722461270499,2.4213,3238.9,3238.3,6.17596]
[1722461270736,2.4213,3238.9,3238.2,3.08813]
[1722461270917,2.4213,3238.9,3238.3,3.08798]
[1722461271449,2.4213,3238.9,3238.5,3.08779]
[1722461271619,2.4213,3238.9,3237.9,7.897201]
[1722461271821,2.4213,3238.9,3238.4,3.08794]
[1722461272445,2.4213,3238.9,3238.5,3.08777]
[1722461273864,2.4213,3238.9,3238.3,3.08799]
[1722461274605,2.4213,3238.9,3238.3,3.08797]
[1722461274806,2.4213,3238.9,3238.4,3.08792]
[1722461275411,2.4213,3238.9,3238.3,3.08797]
[1722461275412,2.4213,3238.9,3238.5,3.08783]
[1722461275618,2.4213,3238.9,3238.4,3.08793]
[1722461276045,2.4213,3238.9,3238.4,0.617589]
[1722461276221,2.4213,3238.9,3238.6,3.08773]
[1722461277125,2.4213,3238.9,3238.6,3.08766]
[1722461277332,2.4213,3238.9,3238.8,3.08756]
[1722461279946,19.73,3239.5,3239.4,3.08699]
[1722461280158,2.3704,3239.7,3239.6,3.0868]
[1722461280455,2.3704,3240.0,3239.6,3.0868]
[1722461280611,2.3704,3240.0,3239.7,3.08668]
[1722461280948,2.3704,3240.0,3239.7,3.0867]
[1722461281156,3.35444,3240.0,3239.7,3.0867]
[1722461281358,3.35444,3240.0,3239.7,3.08663]
[1722461281563,7.47,3240.1,3239.7,3.08662]
[1722461283232,7.47,3240.1,3239.8,3.0866]
[1722461283634,19.73,3240.3,3240.2,3.08622]
[1722461283833,19.73,3240.3,3239.6,5.55739683]
[1722461283834,2.373,3240.8,3240.4,3.08602]
[1722461284042,2.373,3240.8,3240.7,3.08575]
[1722461284346,2.373,3240.8,3240.6,3.08579]
[1722461284347,12.17,3240.9,3240.6,3.08584]
[1722461284548,12.17,3240.9,3240.8,3.08565]
[1722461285959,12.17,3240.9,3240.8,6.1713]
[1722461286368,2.373,3241.3,3241.1,3.08536]
[1722461286782,2.373,3241.3,3241.1,6.17065]
[1722461286934,7.47,3241.6,3241.2,3.08527]
[1722461287268,8.46351,3241.6,3241.2,3.08527]
[1722461290871,8.46351,3241.6,3241.2,3.08518]
[1722461291239,0.99351,3241.6,3241.2,3.08518]
[1722461291439,2.4651,3241.7,3241.2,3.08518]
[1722461292342,2.4651,3241.7,3241.2,6.17038]
[1722461292538,19.64,3242.0,3241.4,3.08508]
[1722461292737,5.54959,3242.1,3241.4,3.08508]
[1722461292972,2.4651,3242.1,3241.5,3.0849]
[1722461293139,2.51951,3242.0,3241.4,3.085]
[1722461293969,2.51951,3242.0,3241.5,3.08498]
[1722461297586,2.4651,3242.1,3241.3,3.08517]
[1722461297746,2.4651,3242.1,3241.4,3.08508]
[1722461297747,5.4651,3242.1,3241.4,3.08508]
[1722461297942,3.08453,3242.0,3241.2,3.08522]
[1722461298148,2.4651,3242.0,3240.4,5.5799]
[1722461298343,2.4651,3242.0,3240.8,3.08558]
[1722461298659,3.08494,3241.6,3240.8,3.08558]
[1722461298861,2.2939,3241.4,3240.6,3.0858]
[1722461299071,2.2939,3241.4,3240.5,3.08593]
[1722461299072,3.08525,3241.3,3240.5,3.08593]
[1722461299275,3.08528,3241.2,3240.5,3.08593]
[1722461299786,3.08528,3241.2,3240.4,3.08596]
[1722461300086,0.617053,3241.1,3239.8,3.39514]
[1722461300249,0.617053,3241.1,3239.7,1.5]
[1722461300250,3.08593,3240.6,3239.7,3.08664]
[1722461300448,3.08602,3240.5,3239.7,3.08664]
[1722461300884,3.08602,3240.5,3239.5,3.08681]
[1722461300885,3.08614,3240.3,3239.5,3.08681]
[1722461301090,3.08602,3240.5,3239.7,3.0867]
[1722461301310,3.08579,3240.7,3239.7,3.0867]
[1722461301528,3.08594,3240.5,3239.7,3.0867]
[1722461301812,3.08594,3240.5,3239.5,3.95989125]
[1722461301813,6.17197,3240.5,3239.6,3.08677]
[1722461301972,3.08604,3240.4,3239.5,3.95989125]
[1722461302174,3.08623,3240.2,3239.3,5.4865]
[1722461302431,3.08648,3240.0,3239.2,3.08711]
[1722461302633,3.08654,3239.9,3239.2,3.08711]
[1722461302935,3.08661,3239.8,3239.0,3.08735]
[1722461303098,3.08648,3240.0,3239.0,4.094487]
[1722461303099,3.0867,3239.7,3239.0,4.094487]
[1722461303498,3.08645,3240.0,3239.0,4.094487]
[1722461303693,3.08671,3239.7,3239.0,4.094487]
[1722461304617,3.08671,3239.7,3239.0,1.007137]
[1722461304935,3.08671,3239.7,3238.8,5.48402]
[1722461304936,3.08681,3239.6,3238.8,5.48402]
[1722461305228,3.0869,3239.5,3238.8,3.08752]
[1722461305530,3.0869,3239.5,3238.7,3.26851]
[1722461305886,3.08708,3239.3,3238.7,0.18086]
[1722461306207,3.08708,3239.3,3238.6,3.08773]
[1722461306608,3.08708,3239.3,3238.4,5.42073]
[1722461306609,3.08708,3239.3,3238.4,5.42065]
[1722461306812,3.08708,3239.3,3238.6,3.08775]
[1722461307746,3.08708,3239.3,3238.4,3.08785]
[1722461307928,3.08733,3239.1,3238.4,3.72057512]
[1722461308623,3.08737,3239.0,3238.4,0.63272512]
[1722461308816,3.08737,3239.0,3238.2,3.08812]
[1722461309022,3.08737,3239.0,3238.0,3.89333243]
[1722461309023,3.08752,3238.9,3238.1,3.08821]
[1722461309331,3.08752,3238.9,3238.2,3.0]
[1722461309856,3.08757,3238.8,3238.2,3.0]
[1722461310613,3.08757,3238.8,3237.9,5.39941]
[1722461310954,3.08771,3238.7,3237.9,3.08836]
[1722461311778,3.08771,3238.7,3237.7,3.08854]
[1722461311928,3.08777,3238.6,3237.9,3.0884]
[1722461312409,3.08785,3238.5,3237.7,3.08854]
[1722461312738,3.08785,3238.5,3237.8,6.08851]
[1722461314225,3.08805,3238.3,3237.8,3.0]
[1722461314430,3.08805,3238.3,3237.7,3.0]
[1722461314642,3.08794,3238.4,3237.7,3.608868]
[1722461314949,3.08794,3238.4,3237.6,3.08868]
[1722461315309,3.08809,3238.3,3237.6,3.08868]
[1722461315510,3.08814,3238.2,3237.5,3.08879]
[1722461315737,3.08814,3238.2,3237.6,3.0]
[1722461315944,6.17636,3238.2,3237.6,3.0]
[1722461316643,3.08814,3238.2,3237.6,3.0]
[1722461316945,3.08804,3238.3,3237.6,6.08865]
[1722461317647,2.4722,3238.7,3237.8,3.08847]
[1722461317845,3.08775,3238.6,3238.0,3.08831]
[1722461318051,2.4722,3238.7,3238.0,3.08831]
[1722461318255,2.91132074,3238.7,3238.1,3.08816]
[1722461318409,2.4722,3238.7,3238.2,3.08811]
[1722461318846,2.4722,3238.7,3238.2,3.08806]
[1722461319010,5.5088,3239.1,3238.5,3.08784]
[1722461320542,2.4215,3239.1,3238.5,3.08784]
[1722461320707,2.4215,3239.1,3238.6,3.0877]
[1722461320913,2.4215,3239.1,3238.7,3.0876]
[1722461321339,2.4215,3239.1,3238.7,3.08758]
[1722461321557,2.4215,3239.1,3238.8,3.08747]
[1722461321728,7.47,3239.4,3238.9,3.08745]
[1722461321928,1.299771,3239.4,3239.0,3.08737]
[1722461322128,2.4409,3239.5,3239.0,3.08737]
[1722461322725,2.4409,3239.5,3238.8,3.08748]
[1722461322928,2.4409,3239.5,3238.9,3.08744]
[1722461323117,2.4409,3239.5,3238.9,6.17483]
[1722461323317,2.87639414,3239.5,3238.9,6.17483]
[1722461323517,2.87639414,3239.5,3239.0,3.08736]
[1722461323719,2.87639414,3239.5,3238.3,1.5]
[1722461323720,7.47,3239.8,3239.3,3.08702]
[1722461324038,7.47,3239.8,3239.4,3.08694]
[1722461324553,7.47,3239.8,3239.7,3.0867]
[1722461324760,19.73,3240.1,3239.8,3.0866]
[1722461324920,20.36240944,3240.1,3239.8,3.0866]
[1722461325125,7.47,3240.4,3239.8,3.08654]
[1722461325319,7.47,3240.4,3240.0,3.08639]
[1722461325637,7.47,3240.4,3239.9,3.08649]
[1722461326156,7.47,3240.4,3239.9,3.08047573]
[1722461326459,7.47,3240.4,3240.1,3.0863]
[1722461326889,7.47,3240.4,3239.9,3.08047573]
[1722461327862,7.47,3240.4,3240.0,3.0864]
[1722461328057,7.47,3240.4,3239.9,3.08047573]
[1722461328058,7.47,3240.4,3240.1,3.08632]
[1722461328282,7.47,3240.4,3239.9,3.08047573]
[1722461328283,7.47,3240.4,3239.9,3.08646]
[1722461328684,7.47,3240.4,3239.9,6.17292]
[1722461328851,7.47,3240.4,3240.1,3.08631]
[1722461329054,7.47,3240.4,3240.2,3.08622]
[1722461329254,7.47,3240.4,3240.1,3.08631]
[1722461329956,19.73,3240.6,3239.9,3.08644]
[1722461330183,3.08576,3240.7,3239.9,3.08644]
[1722461330352,0.617147,3240.6,3239.9,3.08644]
[1722461331256,0.617147,3240.6,3240.0,3.08641]
[1722461333289,0.617147,3240.6,3239.9,3.08644]
[1722461333290,0.617147,3240.6,3239.7,3.08665]
[1722461333479,0.617147,3240.6,3239.9,3.08644]
[1722461333665,0.617147,3240.6,3239.9,6.17289]
[1722461333871,3.4562307,3240.5,3239.8,3.08659]
[1722461334268,3.4562307,3240.5,3239.8,3.08653]
[1722461336195,0.3702907,3240.5,3239.9,3.08644]
[1722461336499,0.3702907,3240.5,3240.0,3.08641]
[1722461336696,13.418671,3240.9,3240.0,3.08641]
[1722461337600,3.08576,3240.7,3240.0,3.08641]
[1722461338671,6.17158,3240.7,3240.0,3.08641]
[1722461339479,3.08576,3240.7,3240.0,3.08641]
[1722461339678,3.08585,3240.6,3240.0,3.08641]
[1722461339907,0.617161,3240.5,3239.8,6.17305]
[1722461340410,3.703111,3240.5,3239.7,3.08664]
[1722461340586,3.08604,3240.4,3239.7,3.08664]
[1722461340788,3.08604,3240.4,3239.6,3.08677]
[1722461340789,5.41599,3240.3,3239.6,3.08677]
[1722461340966,2.3298,3240.3,3239.7,3.08668]
[1722461341383,3.08623,3240.2,3239.5,3.0868]
[1722461341768,2.3298,3240.3,3239.5,3.0868]
[1722461341769,2.3298,3240.3,3239.7,3.08669]
[1722461342007,3.618385,3240.3,3239.7,3.08669]
[1722461342190,6.704565,3240.3,3239.6,3.0868]
[1722461344595,6.704565,3240.3,3239.6,3.08673]
[1722461344799,6.704565,3240.3,3239.2,3.0]
[1722461344800,9.790765,3240.3,3239.4,3.08693]
[1722461345002,9.790765,3240.3,3239.6,3.0868]
[1722461345377,6.704565,3240.3,3239.6,3.0868]
[1722461345684,3.08624,3240.2,3239.6,3.0868]
[1722461345898,3.08624,3240.2,3239.4,6.17383]
[1722461346077,0.9790805,3240.2,3239.5,3.0]
[1722461346278,3.08643,3240.0,3239.3,3.08703]
[1722461346478,3.08643,3240.0,3239.4,3.0]
[1722461346698,3.08662,3239.8,3238.9,3.08743]
[1722461346897,3.618385,3240.3,3238.9,3.08743]
[1722461346898,3.08671,3239.7,3238.9,3.08743]
[1722461347103,3.08669,3239.8,3239.0,6.17465]
[1722461347303,3.395419,3239.7,3239.0,3.08728]
[1722461347508,3.08685,3239.6,3238.8,3.08747]
[1722461347708,3.08685,3239.6,3238.9,3.0874]
[1722461348301,3.08692,3239.5,3238.7,3.08765]
[1722461348487,2.4834,3239.6,3238.5,6.92029]
[1722461348813,3.08702,3239.4,3238.8,3.08755]
[1722461349009,3.08702,3239.4,3238.5,3.24483501]
[1722461349211,6.17408,3239.4,3238.7,3.08764]
[1722461349414,3.08702,3239.4,3238.7,3.08764]
[1722461349717,3.08723,3239.2,3238.5,3.08776]
[1722461351299,3.704657,3239.2,3238.5,3.08776]
[1722461351496,3.704657,3239.2,3238.5,6.17555]
[1722461351710,3.704657,3239.2,3238.6,3.08775]
[1722461354112,3.08737,3239.0,3238.3,3.08802]
[1722461354280,8.5102,3238.9,3238.2,3.0]
[1722461354483,8.5102,3238.9,3238.1,3.08822]
[1722461354484,3.72243308,3238.8,3238.1,3.08822]
[1722461354679,3.72243308,3238.8,3238.1,6.17639]
[1722461354891,3.72243308,3238.8,3238.1,3.08817]
[1722461355414,3.72243308,3238.8,3238.1,6.17634]
[1722461355614,3.72243308,3238.8,3238.1,6.17633]
[1722461356005,3.72243308,3238.8,3238.2,3.08812]
[1722461356213,0.63487308,3238.8,3238.2,3.08812]
[1722461356584,3.72243308,3238.8,3238.2,3.08812]
[1722461358198,0.60576331,3238.7,3238.1,3.08819]
[1722461358409,6.17538,3238.7,3237.8,3.15353918]
[1722461358721,3.08781,3238.6,3237.9,3.08841]
[1722461358913,3.08781,3238.6,3238.0,3.0]
[1722461359302,3.08781,3238.6,3238.0,6.08828]
[1722461362202,3.08758,3238.8,3238.0,6.08825]
[1722461362547,3.0877,3238.7,3238.0,6.08825]
[1722461363240,3.08777,3238.6,3238.0,3.08825]
[1722461364316,3.08785,3238.5,3237.7,3.08859]
[1722461364516,3.08785,3238.5,3237.8,3.0]
[1722461364517,3.08797,3238.4,3237.8,3.0]
[1722461365255,0.308785,3238.5,3236.3,0.96872516]
[1722461365415,0.308785,3238.5,3234.6,3.1760446]
[1722461365416,3.08986,3236.4,3234.6,3.1760446]
[1722461365615,4.50426572,3237.7,3233.5,3.70538537]
[1722461365616,3.09192,3234.3,3233.5,3.70538537]
[1722461365848,3.09192,3234.3,3233.4,2.86088419]
[1722461365849,3.09158,3234.6,3233.4,2.79256845]
[1722461366050,3.09204,3234.2,3233.4,2.79256845]
[1722461366453,0.64346101,3233.8,3233.4,2.79256845]
[1722461366782,3.09256,3233.6,3233.4,2.79256845]
[1722461367262,6.18524,3233.5,3233.4,2.79256845]
[1722461367870,12.27786,3233.5,3233.4,2.79256845]
[1722461368018,15.92048,3233.5,3233.4,2.79256845]
[1722461368223,19.941428,3233.5,3233.4,1.24620845]
[1722461368657,6.18658,3232.8,3232.7,0.1451223]
[1722461368963,15.25877,3232.8,3232.7,0.1451223]
[1722461369882,18.35206,3232.8,3232.7,0.1451223]
[1722461370042,20.187266,3232.8,3232.7,2.3e-06]
[1722461370547,3.09381,3232.3,3231.0,5.0]
[1722461370751,3.09492,3231.1,3231.0,5.0]
[1722461370950,6.18984,3231.1,3231.0,5.0]
[1722461371355,9.28476,3231.1,3231.0,5.0]
[1722461371668,13.763236,3231.1,3231.0,5.0]
[1722461371875,10.668316,3231.1,3231.0,5.0]
[1722461372375,13.763236,3231.1,3231.0,5.0]
[1722461372574,3.0963,3229.7,3229.5,0.1451223]
[1722461372731,3.09635,3229.6,3229.5,0.1451223]
[1722461373135,3.0963,3229.7,3229.5,0.1451223]
[1722461373436,6.1927,3229.6,3229.5,0.1451223]
[1722461373842,6.1927,3229.6,3229.3,9.6e-06]
[1722461373843,12.3862,3229.4,3229.3,9.6e-06]
[1722461374073,14.76879,3229.4,3229.3,9.6e-06]
[1722461374257,14.76879,3229.4,3226.3,1.5]
[1722461374258,2.38259,3229.4,3226.3,1.5]
[1722461374463,3.0978,3228.1,3226.3,1.5]
[1722461374772,3.0,3228.8,3226.3,1.5]
[1722461374973,3.09771,3228.2,3227.0,3.09878]
[1722461375178,3.0978,3228.1,3226.9,3.09894]
[1722461375483,3.09807,3227.9,3226.5,3.0993]
[1722461375634,0.609807,3227.9,3226.8,3.09904]
[1722461375839,3.09807,3227.9,3226.8,3.09904]
[1722461376061,3.09817,3227.8,3226.6,3.40914]
[1722461376236,3.09817,3227.8,3226.7,3.09904]
[1722461376442,3.09807,3227.9,3226.6,3.40915]
[1722461376904,2.4932,3227.8,3226.6,3.40915]
[1722461377080,2.4932,3227.8,3226.2,0.1451223]
[1722461377081,2.4932,3227.8,3226.4,3.09941]
[1722461377275,2.4932,3227.8,3226.2,0.1451223]
[1722461377276,3.09838,3227.5,3226.2,0.1451223]
[1722461377598,2.4932,3227.8,3226.2,0.1451223]
[1722461377599,3.09864,3227.3,3226.2,0.1451223]
[1722461377801,3.09887,3227.0,3226.2,0.1451223]
[1722461378369,3.0,3227.2,3226.2,0.1451223]
[1722461378563,3.09834,3227.6,3226.2,0.1451223]
[1722461378769,6.09839,3227.5,3226.4,3.09934]
[1722461378964,3.0,3227.5,3226.2,3.2447323]
[1722461379266,3.09849,3227.4,3226.2,3.2447323]
[1722461379468,3.0,3227.3,3226.2,0.1451223]
[1722461380068,3.0,3227.5,3226.2,0.46960553]
[1722461380316,3.0,3227.5,3226.2,0.1451223]
[1722461380484,3.09877,3227.1,3226.2,0.1451223]
[1722461380669,3.09918,3226.7,3226.2,0.1451223]
[1722461380875,3.09912,3226.8,3226.2,0.1451223]
[1722461381092,3.0,3227.0,3226.2,0.1451223]
[1722461381427,3.708829,3226.9,3226.2,0.1451223]
[1722461381565,3.0,3227.0,3226.2,0.1451223]
[1722461381768,3.09905,3226.8,3226.2,0.1451223]
[1722461382008,3.09914,3226.7,3226.2,0.1451223]
[1722461382178,3.09925,3226.6,3226.2,0.1451223]
[1722461382379,3.09895,3226.9,3226.2,0.1451223]
[1722461382799,3.09904,3226.8,3226.2,0.1451223]
[1722461383292,3.09897,3226.9,3226.2,0.1451223]
[1722461383697,3.09907,3226.8,3226.2,0.1451223]
[1722461384099,3.09895,3226.9,3226.2,0.1451223]
[1722461384395,3.09907,3226.8,3226.2,0.1451223]
[1722461384586,3.09915,3226.7,3226.2,0.1451223]
[1722461384781,3.409065,3226.7,3226.2,0.1451223]
[1722461385009,0.309915,3226.7,3226.2,0.1451223]
[1722461385174,3.09927,3226.6,3226.2,0.1451223]
[1722461385390,3.09952,3226.3,3226.2,0.1451223]
[1722461385873,11.69404,3226.3,3226.2,0.1451223]
[1722461386301,18.44308,3226.3,3226.2,2.3e-06]
[1722461386772,3.10072,3225.1,3224.1,3.1016]
[1722461387112,3.1009,3224.9,3224.1,0.31016]
[1722461387285,3.0,3225.7,3223.4,3.10229]
[1722461387286,3.10143,3224.4,3223.4,3.10229]
[1722461387615,5.3329,3224.8,3223.1,3.10259]
[1722461387616,3.10155,3224.2,3223.1,3.10259]
[1722461387821,5.3329,3224.8,3223.0,0.1451223]
[1722461387978,3.10187,3223.9,3223.0,0.1451223]
[1722461388180,3.1024,3223.4,3223.0,0.1451223]
[1722461388481,2.3329,3223.7,3223.0,0.1451223]
[1722461388482,3.1026,3223.1,3223.0,0.1451223]
[1722461388687,6.1026,3223.1,3223.0,0.1451223]
[1722461388887,12.3078,3223.1,3223.0,0.1451223]
[1722461389111,9.7552,3223.1,3223.0,0.1451223]
[1722461389323,6.6526,3223.1,3223.0,0.1451223]
[1722461389615,3.0,3223.1,3223.0,0.1451223]
[1722461389774,2.99037821,3223.1,3223.0,0.1451223]
[1722461389977,6.09297821,3223.1,3223.0,0.1451223]
[1722461390280,0.310187,3223.9,3223.0,0.1451223]
[1722461390501,9.2329,3223.1,3223.0,0.1451223]
[1722461390997,3.6526,3223.1,3223.0,0.1451223]
[1722461391189,3.10248,3223.3,3223.0,0.1451223]
[1722461391381,2.4777,3223.8,3223.0,0.1451223]
[1722461391746,3.10222,3223.5,3223.0,0.1451223]
[1722461391892,3.10241,3223.3,3223.0,0.1451223]
[1722461392093,3.0,3223.2,3223.0,0.1451223]
[1722461392408,3.0,3223.4,3223.0,0.1451223]
[1722461392409,6.2052,3223.1,3223.0,0.1451223]
[1722461392720,12.8578,3223.1,3223.0,0.1451223]
[1722461393030,6.20674,3222.3,3222.2,1.0]
[1722461393249,9.827414,3222.3,3222.2,1.0]
[1722461393892,9.81762019,3222.3,3222.2,1.0]
[1722461394495,9.16065019,3222.3,3219.7,5.10724351]
[1722461394696,3.10479,3220.9,3219.7,5.10724351]
[1722461394894,3.10437,3221.3,3219.7,5.10724351]
[1722461394895,3.10521,3220.4,3219.7,5.10724351]
[1722461395167,3.10521,3220.4,3219.8,0.06013363]
[1722461395460,6.21136,3219.9,3219.8,0.06013363]
[1722461395636,0.621136,3219.9,3219.8,0.06013363]
[1722461395821,3.0,3220.9,3219.7,5.10724351]
[1722461395822,3.0,3220.8,3219.7,5.10724351]
[1722461396133,3.10578,3219.8,3219.7,5.10724351]
[1722461396336,3.10549,3220.1,3219.7,5.10724351]
[1722461396537,6.21156,3219.8,3219.7,5.14433869]
[1722461396850,6.21156,3219.8,3219.7,5.14359327]
[1722461396851,9.21156,3219.8,3219.7,5.14359327]
[1722461397061,3.10534,3220.3,3219.7,5.14359327]
[1722461397202,3.0,3220.2,3219.7,5.1536669]
[1722461397398,2.4995,3220.8,3219.7,5.1536669]
[1722461397399,3.55,3220.7,3219.7,5.09141196]
[1722461397648,3.10578,3219.8,3219.7,5.09141196]
[1722461397800,3.10541,3220.2,3219.7,5.04498857]
[1722461398011,3.10527,3220.4,3219.7,5.04498857]
[1722461398234,3.10542,3220.2,3219.7,5.04498857]
[1722461398450,5.60432,3220.8,3219.7,5.04498857]
[1722461398652,3.1046,3221.1,3219.7,5.04498857]
[1722461398858,2.3662,3221.6,3220.0,3.10558]
[1722461398859,3.10463,3221.0,3220.0,3.10558]
[1722461399159,3.10453,3221.1,3220.2,3.10539]
[1722461399318,0.620888,3221.1,3220.3,3.10527]
[1722461399501,3.10414,3221.5,3220.3,3.10527]
[1722461399706,3.10414,3221.5,3220.5,3.10501]
[1722461399902,3.10397,3221.7,3220.6,3.10497]
[1722461400140,4.01958502,3222.2,3220.8,3.10474]
[1722461400141,3.10386,3221.8,3220.8,3.10474]
[1722461400302,3.10386,3221.8,3219.7,8.15076857]
[1722461400303,0.91606502,3222.2,3220.4,5.44131]
[1722461400504,3.103,3222.7,3221.7,3.10388]